bitfinex/quotes_ETHUSD_20241104
["timestamp","ask_amount","ask_price","bid_price","bid_amount"]
[1730696887777,4.12764393,2471.1,2470.3,4.04798]
[1730696887778,4.04743,2470.7,2470.3,4.04798]
[1730696888313,4.04743,2470.7,2470.4,0.27259916]
[1730696888526,0.08086393,2470.8,2470.4,0.27259916]
[1730696888814,4.04716,2470.9,2470.4,4.32051916]
[1730696888815,8.09439,2470.9,2470.4,4.32051916]
[1730696889611,4.04716,2470.9,2470.4,4.32051916]
[1730696889916,4.04729,2470.8,2470.4,4.32051916]
[1730696890132,4.12815393,2470.8,2470.4,4.32051916]
[1730696890620,4.81379,2470.8,2470.4,4.32051916]
[1730696891278,4.89465393,2470.8,2470.4,4.32051916]
[1730696892105,0.84736393,2470.8,2470.4,4.32051916]
[1730696893413,4.04762,2470.6,2470.4,0.27259916]
[1730696893710,4.04762,2470.6,2470.2,3.30322073]
[1730696894012,4.04762,2470.6,2470.5,0.27246849]
[1730696894234,4.04762,2470.6,2470.3,0.30322835]
[1730696894235,4.12848393,2470.6,2470.3,0.30322835]
[1730696894398,4.12848393,2470.6,2470.5,0.27246849]
[1730696894597,4.12848393,2470.6,2470.4,0.27259916]
[1730696894831,5.11214256,2470.6,2470.5,0.27246849]
[1730696895125,5.11214256,2470.6,2470.2,0.30324215]
[1730696895293,4.12848393,2470.6,2470.5,0.27246849]
[1730696895495,4.12848393,2470.6,2470.2,0.30323785]
[1730696895695,4.12848393,2470.6,2470.5,0.27246849]
[1730696895937,4.12848393,2470.6,2470.2,0.30323785]
[1730696896132,4.12848393,2470.6,2470.3,0.27272985]
[1730696897433,0.08086393,2470.6,2470.3,0.27272985]
[1730696897931,4.12849393,2470.6,2470.3,0.27272985]
[1730696898298,0.08086393,2470.6,2470.3,0.27272985]
[1730696898537,4.12851393,2470.6,2470.3,0.27272985]
[1730696899003,0.08086393,2470.6,2470.3,0.27272985]
[1730696899204,4.12848393,2470.6,2470.3,0.27272985]
[1730696899435,4.12848393,2470.6,2470.1,7.45771]
[1730696899601,4.12848393,2470.6,2470.4,0.27259916]
[1730696899802,4.12848393,2470.6,2470.1,7.45771]
[1730696900024,4.12848393,2470.6,2470.5,0.27246849]
[1730696900226,4.12848393,2470.6,2470.1,7.45771]
[1730696900404,4.12848393,2470.6,2470.5,0.27246849]
[1730696900599,4.12848393,2470.6,2470.3,0.30328409]
[1730696900805,4.12848393,2470.6,2470.5,0.27246849]
[1730696901105,4.12848393,2470.6,2470.4,0.27259916]
[1730696901320,0.08086393,2470.6,2470.5,0.27246849]
[1730696901517,0.08086393,2470.7,2470.5,0.27246849]
[1730696901703,0.08086393,2470.7,2470.3,4.04805]
[1730696902010,0.08086393,2470.7,2470.3,5.36367219]
[1730696902221,4.12832393,2470.7,2470.4,0.27259916]
[1730696903001,3.0541159,2470.7,2470.4,0.27259916]
[1730696906838,4.87455,2471.0,2470.5,4.04768]
[1730696907015,4.87455,2471.0,2470.6,4.04758]
[1730696907216,4.87455,2471.0,2470.6,4.31998119]
[1730696907517,4.87455,2471.0,2470.7,4.04742]
[1730696907518,0.8275,2471.0,2470.7,4.04742]
[1730696907717,0.8275,2471.0,2470.6,4.31998119]
[1730696907917,0.8275,2471.0,2470.8,0.27213989]
[1730696908321,0.8275,2471.0,2470.9,0.27200925]
[1730696908721,0.8275,2471.0,2470.6,4.04748]
[1730696909022,0.8275,2471.0,2470.6,8.82392711]
[1730696909223,0.8275,2471.0,2470.7,0.27227053]
[1730696909945,4.87454,2471.0,2470.7,0.27227053]
[1730696914434,4.04711,2470.9,2470.7,0.27227053]
[1730696915359,4.87445,2471.0,2470.7,0.27227053]
[1730696917167,4.04715,2470.9,2470.7,0.27227053]
[1730696918626,4.87446,2471.0,2470.7,0.27227053]
[1730696918828,0.8275,2471.0,2470.7,1.18193129]
[1730696919229,4.0468,2471.1,2470.7,1.18193129]
[1730696919430,4.04696,2471.0,2470.7,1.59123129]
[1730696923867,4.84375,2471.2,2470.7,1.59123129]
[1730696923868,4.84375,2471.2,2470.8,4.04726]
[1730696924036,4.84375,2471.2,2470.8,4.31939084]
[1730696924238,4.84375,2471.2,2470.8,5.45303319]
[1730696924588,4.04678,2471.1,2470.8,1.40577319]
[1730696925174,8.89047,2471.2,2470.8,1.40577319]
[1730696926174,8.89051,2471.2,2470.8,1.40577319]
[1730696926381,4.84375,2471.2,2470.8,1.40577319]
[1730696928746,4.04679,2471.1,2470.8,1.40577319]
[1730696931822,4.04703,2471.0,2470.8,0.27213084]
[1730696932309,4.04703,2471.0,2470.6,0.55]
[1730696932472,4.04703,2471.0,2470.9,0.27198468]
[1730696932668,4.04703,2471.0,2470.6,0.55]
[1730696932869,4.04703,2471.0,2470.9,0.27198468]
[1730696933106,4.04703,2471.0,2470.6,0.55]
[1730696933285,4.04703,2471.0,2470.9,0.27198468]
[1730696933487,4.04703,2471.0,2470.6,0.55]
[1730696933697,4.04703,2471.0,2470.9,0.27198468]
[1730696933904,4.04703,2471.0,2470.6,0.55]
[1730696934084,4.04703,2471.0,2470.9,0.27198468]
[1730696934490,4.04703,2471.0,2470.6,4.59759]
[1730696934689,4.04703,2471.0,2470.9,0.27198468]
[1730696934895,4.04703,2471.0,2470.6,4.59759]
[1730696935453,4.04703,2471.0,2470.7,0.27224596]
[1730696936121,4.0472,2470.9,2470.7,0.27224596]
[1730696937013,4.04702,2471.0,2470.7,0.27224596]
[1730696938051,4.04716,2470.9,2470.7,0.27224596]
[1730696938357,4.04702,2471.0,2470.7,0.27224596]
[1730696942861,4.04711,2470.9,2470.7,0.27224596]
[1730696943153,4.84437,2470.8,2470.7,0.27224596]
[1730696943517,4.84437,2470.8,2470.6,0.3034946]
[1730696943712,4.84437,2470.8,2470.7,0.27225241]
[1730696943917,6.49500194,2470.8,2470.7,0.27225241]
[1730696944119,7.54921313,2470.8,2470.7,0.27225241]
[1730696944357,7.54921313,2470.8,2470.1,4.04832]
[1730696944358,4.04784,2470.5,2470.1,4.04832]
[1730696944665,4.04784,2470.5,2470.2,0.30352631]
[1730696944858,4.84467,2470.7,2470.1,4.04832]
[1730696944859,4.0476,2470.6,2470.1,4.04832]
[1730696945035,4.04779,2470.5,2470.2,0.30352348]
[1730696945237,4.04779,2470.5,2470.1,4.04832]
[1730696945428,4.04779,2470.5,2470.1,4.98384312]
[1730696945754,4.04779,2470.5,2470.2,0.30353847]
[1730696945964,4.04779,2470.5,2470.1,4.98384312]
[1730696946162,4.04779,2470.5,2470.2,0.30349888]
[1730696946318,4.04779,2470.5,2470.1,4.98384312]
[1730696946518,4.04779,2470.5,2470.2,0.96691707]
[1730696946754,4.04779,2470.5,2470.2,1.07274751]
[1730696948852,4.84456,2470.7,2470.3,0.30341748]
[1730696949057,4.83872,2470.9,2470.4,6.55190942]
[1730696949363,4.04728,2470.8,2470.5,0.4093]
[1730696949860,4.04728,2470.8,2470.4,0.55]
[1730696950576,4.04752,2470.7,2470.4,0.55]
[1730696953379,4.04771,2470.6,2470.3,0.4093]
[1730696953582,8.09542,2470.6,2470.3,0.4093]
[1730696954247,4.04771,2470.6,2470.3,0.4093]
[1730696954463,4.04769,2470.6,2470.3,0.4093]
[1730696954674,4.04769,2470.6,2470.4,0.27267674]
[1730696955052,4.04739,2470.8,2470.4,0.27267674]
[1730696955252,4.04739,2470.8,2470.4,5.97121868]
[1730696955485,4.0472,2470.9,2470.5,0.9593]
[1730696955666,4.04729,2470.8,2470.5,0.9593]
[1730696955990,4.04729,2470.8,2470.6,0.2724154]
[1730696957295,4.83879,2470.8,2470.6,0.2724154]
[1730696958668,4.04743,2470.7,2470.6,0.2724154]
[1730696959068,4.04743,2470.7,2470.4,0.30338642]
[1730696959069,4.04767,2470.6,2470.4,0.30338642]
[1730696959671,4.04743,2470.7,2470.4,0.30338642]
[1730696959994,4.0476,2470.6,2470.4,0.30338642]
[1730696960193,4.0476,2470.6,2470.4,1.01088601]
[1730696960491,4.0476,2470.6,2470.4,0.30338642]
[1730696960697,4.04776,2470.5,2470.4,0.30338642]
[1730696962965,4.0476,2470.6,2470.4,0.30338642]
[1730696963291,8.09532,2470.6,2470.4,0.30338642]
[1730696963501,4.04776,2470.5,2470.4,0.30338642]
[1730696964880,4.82966,2470.5,2470.4,0.30338642]
[1730696966268,5.717386,2470.5,2470.4,0.30338642]
[1730696967702,4.82966,2470.5,2470.4,0.30338642]
[1730696969818,4.82966,2470.5,2470.4,0.57612656]
[1730696971287,4.82966,2470.5,2470.4,0.27274014]
[1730696971288,0.7819,2470.5,2470.4,0.27274014]
[1730696971488,8.09533,2470.6,2470.4,0.27274014]
[1730696971690,8.09533,2470.6,2470.2,0.4093]
[1730696971894,8.09533,2470.6,2470.5,0.27260558]
[1730696971895,8.0953,2470.6,2470.5,0.27260558]
[1730696972105,4.04778,2470.5,2470.2,0.4093]
[1730696972711,8.09501,2470.7,2470.3,0.74907681]
[1730696972992,4.04745,2470.7,2470.3,0.74907681]
[1730696973415,4.04745,2470.7,2470.3,0.445764]
[1730696974220,4.04745,2470.7,2470.3,4.493834]
[1730696975227,4.04745,2470.7,2470.3,0.445764]
[1730696975591,0.7819,2470.3,2469.7,0.8493532]
[1730696975792,4.04868,2470.0,2469.7,1.02708696]
[1730696975992,4.04868,2470.0,2469.6,0.4093]
[1730696975993,4.04859,2470.0,2469.6,0.4093]
[1730696976212,4.04843,2470.1,2469.6,5.45008541]
[1730696976411,4.0483,2470.2,2469.6,5.45008541]
[1730696976412,4.0483,2470.2,2469.7,0.30346047]
[1730696976617,4.04854,2470.1,2469.6,5.62767608]
[1730696976828,4.04854,2470.1,2469.7,0.30337392]
[1730696977028,4.04854,2470.1,2469.6,1.40095541]
[1730696977196,4.04854,2470.1,2469.7,0.30337969]
[1730696977522,4.04863,2470.0,2469.7,0.93458534]
[1730696977902,4.04843,2470.1,2469.7,0.93458534]
[1730696978814,4.04867,2470.0,2469.7,0.93458534]
[1730696979190,4.04867,2470.0,2469.7,0.6312736]
[1730696982441,4.04867,2470.0,2469.6,0.71256471]
[1730696982755,4.04867,2470.0,2469.6,0.71243723]
[1730696984742,4.04876,2469.9,2469.7,0.26427623]
[1730696987636,0.63392415,2470.1,2469.8,2.05993194]
[1730696987824,4.04826,2470.2,2469.9,0.90150408]
[1730696988026,4.83012,2470.3,2469.9,0.90150408]
[1730696988400,4.04838,2470.2,2469.9,0.90150408]
[1730696990018,4.04835,2470.2,2469.9,0.90150408]
[1730696991017,4.04805,2470.4,2469.9,0.90150408]
[1730696991354,4.04805,2470.4,2470.1,0.4093]
[1730696991704,4.04805,2470.4,2470.2,0.26376341]
[1730696991936,4.04777,2470.5,2470.2,0.26376341]
[1730696993042,8.09564,2470.5,2470.2,0.26376341]
[1730696993339,4.04777,2470.5,2470.2,0.26376341]
[1730696993553,4.04777,2470.5,2470.2,0.78951529]
[1730696999964,2.0953,2470.7,2470.2,0.78951529]
[1730697000128,2.42693194,2470.8,2470.2,0.26376341]
[1730697000325,4.04785,2470.5,2470.2,0.26376341]
[1730697003008,4.04809,2470.3,2470.2,0.26376341]
[1730697003476,4.04854,2470.1,2469.7,0.30324926]
[1730697003769,4.04854,2470.1,2469.7,0.77941048]
[1730697003975,4.04854,2470.1,2469.8,0.25510428]
[1730697004329,4.04854,2470.1,2469.7,0.77940578]
[1730697004650,4.04854,2470.1,2469.8,0.25510428]
[1730697004853,4.04854,2470.1,2469.7,0.77940578]
[1730697005024,4.04854,2470.1,2469.8,0.25510428]
[1730697005228,4.04854,2470.1,2469.7,0.77940578]
[1730697005429,4.04854,2470.1,2469.8,0.25510428]
[1730697005662,4.04854,2470.1,2469.7,0.77940578]
[1730697005847,4.04854,2470.1,2469.8,0.25510428]
[1730697006053,4.04854,2470.1,2469.7,0.77940578]
[1730697006225,4.04854,2470.1,2469.7,0.47616793]
[1730697006430,4.04854,2470.1,2469.8,0.25510428]
[1730697006738,4.04854,2470.1,2469.7,0.77939727]
[1730697006950,4.04851,2470.1,2469.9,0.25497354]
[1730697007156,4.04826,2470.2,2469.8,0.77888701]
[1730697007466,4.04826,2470.2,2469.9,0.25497354]
[1730697008232,8.0966,2470.2,2469.9,0.25497354]
[1730697008433,4.04846,2470.1,2469.9,0.25497354]
[1730697009237,4.04826,2470.2,2469.9,0.25497354]
[1730697010133,8.09663,2470.2,2469.9,0.25497354]
[1730697010798,4.04811,2470.3,2469.9,1.14705317]
[1730697011174,4.82433,2470.4,2469.9,5.19577317]
[1730697011370,4.87291,2470.6,2470.1,4.0484]
[1730697011570,4.04761,2470.6,2470.2,0.4093]
[1730697011901,4.87273,2470.8,2470.2,0.66388138]
[1730697012104,4.87273,2470.8,2470.3,0.47122014]
[1730697012260,4.04748,2470.7,2470.3,0.47122014]
[1730697012596,2.28439675,2471.0,2470.6,1.65063194]
[1730697012597,0.63376481,2471.0,2470.6,1.65063194]
[1730697012759,0.63376481,2471.0,2470.6,5.69807194]
[1730697012960,4.87202,2471.2,2470.7,4.301278]
[1730697013368,4.87201,2471.2,2470.8,0.4093]
[1730697013663,4.87201,2471.2,2470.8,0.66309369]
[1730697013664,4.04671,2471.2,2470.8,0.66309369]
[1730697013866,8.09341,2471.2,2470.8,0.66309369]
[1730697014094,4.0467,2471.2,2470.8,0.66309369]
[1730697014280,0.63373158,2471.3,2470.9,4.04696]
[1730697014594,4.0463,2471.4,2471.0,4.30047243]
[1730697014797,4.04647,2471.3,2471.0,0.25353243]
[1730697015461,4.04647,2471.3,2470.8,6.82419365]
[1730697015688,4.0463,2471.4,2470.9,5.38790342]
[1730697016776,8.09272,2471.4,2470.9,5.38790342]
[1730697018206,4.0463,2471.4,2470.9,5.38790342]
[1730697018389,8.09269,2471.4,2470.9,5.38790342]
[1730697018969,4.0463,2471.4,2470.9,5.38790342]
[1730697019203,8.09267,2471.4,2471.0,0.80839429]
[1730697019706,8.09267,2471.4,2471.1,0.25340181]
[1730697022005,4.0463,2471.4,2471.1,0.25340181]
[1730697022209,4.04646,2471.3,2471.1,0.25340181]
[1730697022496,4.0463,2471.4,2471.1,0.25340181]
[1730697024594,4.0463,2471.4,2471.1,0.66270181]
[1730697024802,4.84712,2471.8,2471.4,4.04627]
[1730697025016,4.67917399,2471.9,2471.4,4.04627]
[1730697025312,4.04572,2471.8,2471.5,0.25278786]
[1730697025746,4.04548,2471.9,2471.3,0.4093]
[1730697025906,4.04548,2471.9,2471.6,0.2526573]
[1730697026105,8.09104,2471.9,2471.4,4.04627]
[1730697026343,4.04569,2471.8,2471.4,4.04627]
[1730697026512,4.04568,2471.8,2471.5,0.25278786]
[1730697026913,4.04568,2471.8,2471.3,4.45573]
[1730697027147,4.04568,2471.8,2471.6,0.2526573]
[1730697027352,4.04568,2471.8,2471.3,4.45573]
[1730697027641,4.04568,2471.8,2471.7,0.25252675]
[1730697027947,4.04568,2471.8,2471.3,4.45573]
[1730697028109,4.04568,2471.8,2471.7,0.25252675]
[1730697028309,4.04568,2471.8,2471.3,4.45573]
[1730697028505,4.04568,2471.8,2471.7,0.25252675]
[1730697028710,4.04615,2471.5,2471.1,0.4093]
[1730697029751,4.04615,2471.5,2471.2,0.25305137]
[1730697030746,4.04597,2471.6,2471.2,0.25305137]
[1730697033545,4.04588,2471.7,2471.2,4.29959137]
[1730697033743,4.04588,2471.7,2471.2,5.3402207]
[1730697034325,4.04588,2471.7,2471.2,1.2936807]
[1730697034660,4.04588,2471.7,2471.4,0.4093]
[1730697035150,4.04588,2471.7,2471.5,0.29431028]
[1730697035456,4.04555,2471.9,2471.5,0.29431028]
[1730697035457,8.09113,2471.9,2471.5,0.29431028]
[1730697035659,4.04555,2471.9,2471.5,0.29431028]
[1730697035957,4.84673,2472.0,2471.5,4.34040028]
[1730697036159,4.84673,2472.0,2471.5,5.3850545]
[1730697036860,4.04548,2471.9,2471.5,5.3850545]
[1730697037225,4.84672,2472.0,2471.5,9.4310545]
[1730697037424,4.04526,2472.1,2471.6,0.4093]
[1730697037622,4.0453,2472.0,2471.7,0.29399207]
[1730697043841,8.0905,2472.1,2471.7,0.29399207]
[1730697044168,4.04524,2472.1,2471.7,4.33978207]
[1730697044397,4.04538,2472.0,2471.7,0.29399207]
[1730697044544,8.09054,2472.1,2471.7,0.29399207]
[1730697045044,4.04557,2471.9,2471.7,0.29399207]
[1730697046750,8.09115,2471.9,2471.7,0.29399207]
[1730697046956,4.04563,2471.8,2471.7,0.29399207]
[1730697047372,4.046,2471.6,2471.2,0.4093]
[1730697047882,4.046,2471.6,2471.2,4.45589]
[1730697048242,4.046,2471.6,2471.3,3.0]
[1730697049178,4.04563,2471.8,2471.4,0.4093]
[1730697049179,8.09139,2471.8,2471.4,0.4093]
[1730697049351,4.04582,2471.7,2471.4,0.4093]
[1730697049552,4.04529,2472.1,2471.6,4.04583]
[1730697049752,4.0454,2472.0,2471.5,5.341686]
[1730697050849,4.04529,2472.1,2471.7,0.4093]
[1730697054163,4.04529,2472.1,2471.7,4.45506]
[1730697054372,4.04529,2472.1,2471.7,5.4347076]
[1730697055303,4.04364,2473.1,2472.4,4.04449]
[1730697055463,4.04364,2473.1,2472.2,0.4093]
[1730697055464,4.04363,2473.1,2472.7,1.65063194]
[1730697055679,0.7571,2473.3,2472.7,2.26105813]
[1730697055973,4.04342,2473.2,2472.7,5.69469194]
[1730697056505,4.04327,2473.3,2472.8,4.59391]
[1730697057153,4.67621174,2473.4,2472.9,4.0437]
[1730697057558,0.63319174,2473.4,2472.9,4.0437]
[1730697057796,4.67623174,2473.4,2473.0,4.04365]
[1730697057997,5.62386191,2473.4,2473.0,4.04365]
[1730697058290,5.62386191,2473.4,2472.8,8.63786]
[1730697058495,5.62386191,2473.4,2472.8,4.59388]
[1730697058799,5.62386191,2473.4,2472.9,4.0438]
[1730697059474,4.04325,2473.3,2472.8,4.59388]
[1730697059683,4.04325,2473.3,2472.8,5.8816941]
[1730697059995,4.04325,2473.3,2472.9,0.29219258]
[1730697060872,4.04335,2473.2,2472.9,0.29219258]
[1730697061380,4.0432,2473.3,2472.9,0.29219258]
[1730697063794,4.67623174,2473.4,2472.9,4.33594258]
[1730697063982,4.0432,2473.3,2473.0,1.43106367]
[1730697064192,4.0432,2473.3,2473.0,1.72312903]
[1730697064907,4.67623174,2473.4,2473.0,1.72312903]
[1730697065612,4.04304,2473.4,2473.0,1.72312903]
[1730697066107,4.04278,2473.6,2473.1,0.55]
[1730697066307,4.04303,2473.4,2473.2,0.6316699]
[1730697066479,4.04303,2473.4,2473.2,0.29178535]
[1730697066890,4.04313,2473.4,2473.2,0.29178535]
[1730697067280,4.04328,2473.3,2472.9,0.55]
[1730697069198,4.04279,2473.6,2473.0,4.04365]
[1730697069513,4.04285,2473.5,2473.1,0.459365]
[1730697070214,4.04279,2473.6,2473.1,0.459365]
[1730697070515,4.04286,2473.5,2473.1,0.459365]
[1730697070914,4.04279,2473.6,2473.1,0.459365]
[1730697071090,4.04304,2473.4,2473.1,0.459365]
[1730697072178,4.04285,2473.5,2473.1,0.459365]
[1730697072390,4.04285,2473.5,2473.2,0.8546495]
[1730697072989,1.39023828,2473.7,2473.2,0.8546495]
[1730697072990,4.67570828,2473.7,2473.3,0.4093]
[1730697073217,0.63313828,2473.7,2473.3,0.4093]
[1730697073719,4.04269,2473.6,2473.2,0.8546495]
[1730697074893,4.04269,2473.6,2473.3,0.29148618]
[1730697075220,4.04269,2473.6,2473.2,0.8546495]
[1730697075527,4.04285,2473.5,2473.4,0.29135412]
[1730697075817,4.04285,2473.5,2473.1,0.868665]
[1730697075818,4.04301,2473.4,2473.1,0.868665]
[1730697078019,4.04332,2473.3,2472.9,0.9593]
[1730697078329,4.04334,2473.2,2472.9,0.4093]
[1730697078982,8.08617,2473.4,2472.9,0.4093]
[1730697079181,4.04309,2473.4,2472.9,4.4531]
[1730697079412,4.04309,2473.4,2472.9,5.302798]
[1730697079579,8.08623,2473.4,2472.9,5.302798]
[1730697079786,4.04318,2473.3,2472.9,1.258998]
[1730697080428,4.04318,2473.3,2472.9,5.302828]
[1730697080715,4.04302,2473.4,2472.9,5.302828]
[1730697082321,8.08611,2473.4,2472.9,5.302828]
[1730697082829,4.04318,2473.3,2472.9,1.258998]
[1730697084419,4.04305,2473.4,2472.9,5.302808]
[1730697085328,4.04326,2473.3,2472.9,1.258998]
[1730697085537,4.04354,2473.1,2472.6,4.04424]
[1730697085693,8.08718,2473.1,2472.6,4.04423]
[1730697085897,4.04354,2473.1,2472.6,4.04423]
[1730697087046,8.08721,2473.1,2472.6,4.04423]
[1730697087193,8.08721,2473.1,2472.5,0.4093]
[1730697087194,4.044,2472.8,2472.5,0.4093]
[1730697087398,4.8467,2472.8,2472.5,0.4093]
[1730697088838,4.04419,2472.7,2472.3,4.04479]
[1730697089044,4.04419,2472.7,2472.3,5.6461291]
[1730697089606,4.04419,2472.7,2472.4,0.29266173]
[1730697090726,4.8467,2472.8,2472.4,0.29266173]
[1730697090727,4.04433,2472.6,2472.4,0.29266173]
[1730697091126,4.04417,2472.7,2472.4,0.29266173]
[1730697094930,4.84682,2472.8,2472.4,0.29266173]
[1730697095449,8.89091,2472.8,2472.4,0.29266173]
[1730697096346,4.04426,2472.7,2472.4,0.29266173]
[1730697096512,4.84679,2472.8,2472.4,0.29266173]
[1730697096709,4.04374,2473.0,2472.5,4.45375]
[1730697097118,4.04374,2473.0,2472.6,0.29243644]
[1730697097622,8.08751,2473.0,2472.6,0.29243644]
[1730697097810,4.04383,2472.9,2472.6,0.29243644]
[1730697098007,4.04383,2472.9,2472.6,1.2380473]
[1730697098816,4.04375,2473.0,2472.7,0.4093]
[1730697099014,4.04384,2472.9,2472.7,0.70160431]
[1730697103047,4.0437,2473.0,2472.7,0.70160431]
[1730697103553,8.08752,2473.0,2472.7,0.70160431]
[1730697104150,4.0437,2473.0,2472.7,0.70160431]
[1730697104353,8.08745,2473.0,2472.7,0.70160431]
[1730697104556,4.04383,2472.9,2472.7,0.70160431]
[1730697106457,4.0437,2473.0,2472.7,0.70160431]
[1730697106634,4.0437,2473.0,2472.7,1.17619974]
[1730697107263,4.04385,2472.9,2472.7,1.17619974]
[1730697107465,4.04385,2472.9,2472.7,0.70160431]
[1730697111765,4.04385,2472.9,2472.7,3.73160431]
[1730697115156,4.04399,2472.8,2472.7,3.73160431]
[1730697115353,4.04399,2472.8,2472.7,3.32230431]
[1730697115532,4.86879,2472.8,2472.7,3.32230431]
[1730697115739,5.760054,2472.8,2472.7,3.32230431]
[1730697115951,5.760054,2472.8,2472.7,3.03]
[1730697116235,5.760054,2472.8,2472.7,3.32229211]
[1730697121418,7.41067279,2472.8,2472.7,3.32229211]
[1730697121557,10.41067279,2472.8,2472.7,3.32229211]
[1730697121754,8.760054,2472.8,2472.7,3.03]
[1730697121956,10.41067279,2472.8,2472.7,3.03]
[1730697132849,10.42067279,2472.8,2472.7,3.03]
[1730697136458,4.04596,2471.6,2471.5,0.4093]
[1730697136937,4.04596,2471.6,2471.5,0.70329057]
[1730697144549,4.04596,2471.6,2471.5,0.7017038]
[1730697147036,0.7541,2471.9,2471.5,0.7017038]
[1730697147037,8.09119,2471.9,2471.5,0.7017038]
[1730697147191,0.63356628,2472.0,2471.5,5.99072936]
[1730697147192,4.67895628,2472.0,2471.5,5.99072936]
[1730697147397,4.67895628,2472.0,2471.6,0.60716468]
[1730697147626,4.67895628,2472.0,2471.6,0.90121332]
[1730697147803,4.04539,2472.0,2471.7,0.4077]
[1730697148002,4.04539,2472.0,2471.8,0.29378418]
[1730697148218,4.04539,2472.0,2471.7,0.4077]
[1730697148434,4.04539,2472.0,2471.8,0.29378418]
[1730697148752,4.04474,2472.4,2471.7,1.07885235]
[1730697148901,4.04531,2472.0,2471.7,0.4077]
[1730697149607,4.04531,2472.0,2471.8,0.29378418]
[1730697149962,4.04531,2472.0,2471.7,0.4077]
[1730697150118,4.04531,2472.0,2471.9,0.29365196]
[1730697150442,8.09072,2472.0,2471.9,0.29365196]
[1730697150756,4.04531,2472.0,2471.7,0.4077]
[1730697150938,4.04531,2472.0,2471.9,0.29365196]
[1730697151125,4.04531,2472.0,2471.8,0.29378418]
[1730697151335,4.04531,2472.0,2471.9,0.29365196]
[1730697151820,4.04531,2472.0,2471.7,1.01813288]
[1730697152029,4.04531,2472.0,2471.8,0.29378418]
[1730697152334,4.04549,2471.9,2471.7,1.01813288]
[1730697152848,4.04549,2471.9,2471.7,0.4077]
[1730697155348,4.04514,2472.1,2471.7,0.4077]
[1730697155548,4.04551,2471.9,2471.7,0.4077]
[1730697156608,4.04588,2471.7,2471.5,0.4077]
[1730697157349,8.0912,2471.9,2471.5,0.4077]
[1730697157523,4.04571,2471.8,2471.5,0.4077]
[1730697160148,8.09144,2471.8,2471.5,0.4077]
[1730697160327,4.04571,2471.8,2471.5,0.4077]
[1730697160866,8.09142,2471.8,2471.5,0.4077]
[1730697161047,4.0458,2471.7,2471.5,0.4077]
[1730697163262,4.04596,2471.6,2471.5,0.4077]
[1730697163560,4.04623,2471.5,2471.1,0.4077]
[1730697164661,4.04623,2471.5,2471.2,0.28546431]
[1730697167467,4.936661,2471.7,2471.2,0.28546431]
[1730697167668,4.04597,2471.6,2471.2,0.28546431]
[1730697169556,4.04597,2471.6,2471.2,4.33206431]
[1730697169757,0.817,2471.8,2471.3,4.45411]
[1730697169758,4.04571,2471.8,2471.3,4.45411]
[1730697170068,4.04571,2471.8,2471.4,0.28525469]
[1730697170954,4.04559,2471.9,2471.4,0.28525469]
[1730697171347,4.04574,2471.8,2471.4,0.28525469]
[1730697171545,4.04583,2471.7,2471.4,0.28525469]
[1730697174973,4.04592,2471.7,2471.4,0.28525469]
[1730697177792,4.046,2471.6,2471.4,0.28525469]
[1730697178874,4.04612,2471.5,2471.4,0.28525469]
[1730697181294,4.04612,2471.5,2471.4,0.28529254]
[1730697181475,4.04612,2471.5,2471.1,0.4077]
[1730697181792,4.04612,2471.5,2471.2,0.58886486]
[1730697182104,4.04596,2471.6,2471.2,0.28555708]
[1730697182279,8.092,2471.6,2471.2,0.28555708]
[1730697182794,4.04596,2471.6,2471.2,0.28555708]
[1730697183208,8.092,2471.6,2471.2,0.28555708]
[1730697183366,4.04614,2471.5,2471.2,0.28555708]
[1730697185826,4.0463,2471.4,2471.2,0.28555708]
[1730697186504,4.04596,2471.6,2471.2,0.28555708]
[1730697187428,8.09203,2471.6,2471.2,0.28555708]
[1730697187721,8.09206,2471.6,2471.2,0.28555708]
[1730697187906,4.04622,2471.5,2471.2,0.28555708]
[1730697188278,4.04596,2471.6,2471.2,0.28555708]
[1730697188473,8.09158,2471.8,2471.3,0.4077]
[1730697188679,8.09158,2471.8,2471.4,0.28529254]
[1730697188680,4.04584,2471.7,2471.4,0.28529254]
[1730697192096,8.09179,2471.7,2471.4,0.28529254]
[1730697192520,4.04584,2471.7,2471.4,0.28529254]
[1730697192816,4.0456,2471.9,2471.5,0.4077]
[1730697192817,4.04563,2471.8,2471.5,0.4077]
[1730697192990,4.04547,2471.9,2471.5,0.4077]
[1730697193201,8.09102,2471.9,2471.6,0.28503413]
[1730697193397,4.04547,2471.9,2471.6,0.28503413]
[1730697193921,8.09106,2471.9,2471.6,0.28503413]
[1730697194654,4.04563,2471.8,2471.6,0.28503413]
[1730697194949,4.04579,2471.7,2471.6,0.28503413]
[1730697195608,4.450193,2471.8,2471.6,0.28503413]
[1730697195803,8.495943,2471.8,2471.6,0.28503413]
[1730697197254,4.450193,2471.8,2471.6,0.28503413]
[1730697197743,8.495923,2471.8,2471.6,0.28503413]
[1730697199436,4.450193,2471.8,2471.6,0.28503413]
[1730697202313,4.04579,2471.7,2471.6,0.28503413]
[1730697204209,4.450193,2471.8,2471.6,0.28503413]
[1730697208144,0.7814,2472.1,2471.6,0.28503413]
[1730697208311,4.67910076,2471.9,2471.6,0.28503413]
[1730697208721,0.63351076,2471.9,2471.6,0.28503413]
[1730697209537,4.67898076,2471.9,2471.6,0.28503413]
[1730697209964,0.63351076,2471.9,2471.6,0.28503413]
[1730697210120,4.67905076,2471.9,2471.6,0.28503413]
[1730697210328,0.63351076,2471.9,2471.6,0.28503413]
[1730697211166,4.67899076,2471.9,2471.6,0.28503413]
[1730697226023,4.79899,2471.7,2471.6,0.28503413]
[1730697226429,4.79899,2471.7,2471.2,0.4077]
[1730697226430,4.04628,2471.4,2471.2,0.4077]
[1730697226653,4.04628,2471.4,2471.3,0.3035429]
[1730697226962,4.04628,2471.4,2471.3,0.58894328]
[1730697227166,4.04628,2471.4,2471.3,0.58894411]
[1730697227464,4.04602,2471.6,2471.3,0.58894411]
[1730697227681,4.0462,2471.5,2471.3,0.28540038]
[1730697231366,4.04581,2471.7,2471.3,0.28540038]